fUSD/lending_fUSD_20251215
["ID","MTS","AMOUNT","RATE_DAILY","PERIOD"]
[398503183,1765759841428,-4972.92140408,0.00016742,2]
[398503184,1765759841438,-983.71683824,0.00016745,2]
[398503185,1765759841448,-443.0,0.00016762,2]
[398503186,1765759841460,-540.64043031,0.00016768,2]
[398503187,1765759841470,-2774.3452556,0.00016769,2]
[398503188,1765759841480,-1024.77,0.0001677,2]
[398503189,1765759841490,-178.128,0.00016772,2]
[398503190,1765759841499,-1815.97,0.00016772,2]
[398503191,1765759841510,-150.85899699,0.00016783,2]
[398503192,1765759841521,-4972.92140408,0.00016794,2]
[398503193,1765759841532,-214.0,0.00016796,2]
[398503194,1765759841542,-1669.64988626,0.000168,2]
[398503195,1765759841551,-877.6523233,0.00016812,2]
[398503196,1765759841560,-2774.3452556,0.00016813,2]
[398503197,1765759841569,-1669.6498862,0.00016817,2]
[398503198,1765759841578,-869.0,0.00016823,2]
[398503199,1765759841587,-1669.6498862,0.00016833,2]
[398503200,1765759841596,-150.0,0.00016836,2]
[398503201,1765759841605,-500.0,0.00016836,2]
[398503202,1765759841614,-150.0,0.00016836,2]
[398503203,1765759841623,-500.0,0.00016836,2]
[398503204,1765759841632,-550.0,0.00016836,2]
[398503205,1765759841641,-500.0,0.00016836,2]
[398503206,1765759841650,-150.0,0.00016836,2]
[398503207,1765759841659,-500.0,0.00016836,2]
[398503208,1765759841668,-235.86372858,0.00016836,2]
[398503209,1765759841677,-500.0,0.00016836,2]
[398503210,1765759841686,-150.0,0.00016836,2]
[398503211,1765759841695,-150.0,0.00016836,2]
[398503212,1765759841705,-500.0,0.00016836,2]
[398503213,1765759841715,-500.0,0.00016836,2]
[398503214,1765759841723,-1485.0,0.00016836,2]
[398503215,1765759841732,-643.24107785,0.00016836,2]
[398503216,1765759841743,-500.0,0.00016836,2]
[398503217,1765759841753,-150.0,0.00016836,2]
[398503218,1765759841762,-500.0,0.00016836,2]
[398503219,1765759841772,-500.0,0.00016836,2]
[398503220,1765759841782,-150.0,0.00016836,2]
[398503221,1765759841790,-500.0,0.00016836,2]
[398503222,1765759841799,-200.0,0.00016836,2]
[398503223,1765759841808,-150.0,0.00016836,2]
[398503224,1765759841817,-1669.6498862,0.0001685,2]
[398503225,1765759841826,-1327.0,0.00016856,2]
[398503226,1765759841836,-150.0,0.00016863,2]
[398503227,1765759841845,-200.0,0.00016864,2]
[398503228,1765759841855,-1669.6498862,0.00016867,2]
[398503229,1765759841864,-1669.6498862,0.00016883,2]
[398503230,1765759841875,-1019.0,0.0001689,2]
[398503231,1765759841884,-5244.6746,0.000169,2]
[398503232,1765759841894,-1000.0,0.000169,2]
[398503233,1765759841903,-10000.0,0.000169,2]
[398503234,1765759841914,-1669.6498862,0.000169,2]
[398503235,1765759841923,-1485.06056151,0.000169,2]
[398503236,1765759841936,-539.0,0.00016909,2]
[398503237,1765759841946,-481.15230225,0.00016917,2]
[398503238,1765759841955,-218.0,0.00016918,2]
[398503239,1765759841964,-1600.0,0.00016923,2]
[398503240,1765759841973,-200.72388215,0.00016955,2]
[398503241,1765759841982,-166.99374332,0.00016973,2]
[398503242,1765759841991,-500.0,0.00016973,2]
[398503243,1765759842001,-500.0,0.00016973,2]
[398503244,1765759842011,-500.0,0.00016973,2]
[398503245,1765759842020,-500.0,0.00016973,2]
[398503246,1765759842029,-500.0,0.00016973,2]
[398503247,1765759842038,-500.0,0.00016973,2]
[398503248,1765759842047,-500.0,0.00016973,2]
[398503249,1765759842068,-223.86650023,0.00016973,2]
[398503250,1765759842091,-500.0,0.00016973,2]
[398503251,1765759842101,-500.0,0.00016973,2]
[398503252,1765759842110,-169.15209317,0.00016973,2]
[398503253,1765759842120,-500.0,0.00016973,2]
[398503254,1765759842129,-211.96165327,0.00016973,2]
[398503255,1765759842139,-500.0,0.00016973,2]
[398503256,1765759842148,-500.0,0.00016973,2]
[398503257,1765759842157,-500.0,0.00016973,2]
[398503258,1765759842166,-500.0,0.00016973,2]
[398503259,1765759842175,-500.52668444,0.00016973,2]
[398503260,1765759842184,-500.0,0.00016973,2]
[398503261,1765759842193,-500.0,0.00016973,2]
[398503262,1765759842206,-332.41532846,0.00016973,2]
[398503263,1765759842215,-500.0,0.00016973,2]
[398503264,1765759842224,-566.76008115,0.00016973,2]
[398503265,1765759842233,-500.0,0.00016973,2]
[398503266,1765759842244,-500.0,0.00016973,2]
[398503267,1765759842253,-150.0,0.00016973,2]
[398503268,1765759842262,-500.0,0.00016973,2]
[398503269,1765759842273,-500.0,0.00016973,2]
[398503270,1765759842281,-453.60065798,0.00016973,2]
[398503271,1765759842291,-150.0,0.00016973,2]
[398503272,1765759842299,-500.0,0.00016973,2]
[398503273,1765759842308,-500.0,0.00016973,2]
[398503274,1765759842317,-156.26715092,0.00016973,2]
[398503275,1765759842328,-500.0,0.00016973,2]
[398503276,1765759842337,-500.0,0.00016973,2]
[398503277,1765759842347,-1485.0,0.00016973,2]
[398503278,1765759842356,-500.0,0.00016973,2]
[398503279,1765759842365,-500.0,0.00016973,2]
[398503280,1765759842375,-500.0,0.00016973,2]
[398503281,1765759842384,-150.0,0.00016973,2]
[398503282,1765759842394,-500.0,0.00016973,2]
[398503283,1765759842403,-150.0,0.00016973,2]
[398503284,1765759842412,-500.0,0.00016973,2]
[398503285,1765759842421,-150.0,0.00016973,2]
[398503286,1765759842431,-500.0,0.00016986,2]
[398503287,1765759842440,-150.0,0.00016986,2]
[398503288,1765759842449,-150.00000001,0.00016986,2]
[398503289,1765759842458,-4710.0,0.00016987,2]
[398503290,1765759842467,-506.09206684,0.00016989,2]
[398503291,1765759842476,-500.0,0.00016989,2]
[398503292,1765759842486,-500.0,0.00016989,2]
[398503293,1765759842494,-166.0,0.0001699,2]
[398503294,1765759842503,-166.0,0.0001699,2]
[398503295,1765759842512,-166.0,0.0001699,2]
[398503296,1765759842521,-167.11,0.0001699,2]
[398503297,1765759842530,-504.03,0.00016995,2]
[398503298,1765759842539,-151.0,0.00016995,2]
[398503299,1765759842548,-5131.7470438,0.00016996,2]
[398503300,1765759842562,-13471.8185333,0.00016996,2]
[398503301,1765759842571,-98003.8201864,0.00016996,2]
[398503302,1765759842582,-16171.2199612,0.00016996,2]
[398503303,1765759842594,-500.0,0.00016997,2]
[398503304,1765759842603,-500.0,0.00016997,2]
[398503305,1765759842613,-500.0,0.00016997,2]
[398503306,1765759842624,-151.0,0.00016997,2]
[398503307,1765759842634,-748484.98048742,0.00016998,2]
[398503308,1765759842643,-200.0,0.00016998,2]
[398503309,1765759842651,-359.26881847,0.00016998,2]
[398503310,1765759842662,-500.0,0.00016999,2]
[398503311,1765759842671,-500.0,0.00016999,2]
[398503312,1765759842680,-500.0,0.00016999,2]
[398503313,1765759842689,-500.0,0.00016999,2]
[398503314,1765759842698,-500.0,0.00016999,2]
[398503315,1765759842707,-160.19704366,0.00016999,2]
[398503316,1765759842716,-189.75866884,0.00016999,2]
[398503317,1765759842724,-300.0,0.00016999,2]
[398503318,1765759842734,-300.0,0.00016999,2]
[398503319,1765759842743,-150.0,0.00017,2]
[398503320,1765759842752,-831205.36268665,0.00017,2]
[398503321,1765759842761,-500.0,0.00017,2]
[398503322,1765759842770,-4286706.57737659,0.00017,2]
[398503324,1765759843088,-1692.96188464,0.00017,2]
[398503357,1765759986907,156.86,7.935e-05,2]
[398503358,1765759987110,156.86,8.464e-05,2]
[398503359,1765759987352,156.86,8.993e-05,2]
[398503360,1765759987539,156.86,9.522e-05,2]
[398503361,1765759987723,156.86,0.00010051,2]
[398503362,1765759987937,156.86,0.0001058,2]
[398503363,1765759988142,156.86,0.00011109,2]
[398503364,1765759988969,156.86,0.00011638,2]
[398503365,1765759991087,156.86,0.00012167,2]
[398503366,1765759991126,156.86,0.00012696,2]
[398503367,1765759991185,156.86,0.00013225,2]
[398503368,1765759991253,156.86,0.00013754,2]
[398503369,1765759991314,156.86,0.00014283,2]
[398503370,1765759991365,156.86,0.00014812,2]
[398503371,1765759991432,156.86,0.00015341,2]
[398503543,1765760478589,372.21018455,0.00015342,2]
[398503546,1765760487320,891.53018374,0.00015,2]
[398503557,1765760531593,300.0,0.00015753,30]
[398503567,1765760567589,300.0,0.00015699,3]
[398503570,1765760577103,150.0,0.00015267,2]
[398503577,1765760604261,-317.11,0.00015781,3]
[398503578,1765760604728,-14.14452027,0.00015781,2]
[398503579,1765760614446,9234.8076686,0.0001559,2]
[398503582,1765760629710,564.828,0.000225,120]
[398503583,1765760638002,367.98966444,0.00015333,2]
[398503592,1765760665828,163.56,0.00014986,7]
[398503599,1765760707690,150.0,0.00015288,2]
[398503600,1765760708389,-163.2832308,0.00015781,2]
[398503605,1765760713441,150.0,0.00015288,2]
[398503608,1765760730174,4007.0,0.00022,30]
[398503720,1765761033592,-156.86,0.0001587,2]
[398503721,1765761033603,-116.14000014,0.00015876,2]
[398503722,1765761033614,-34.77999986,0.00015876,2]
[398503723,1765761033623,-151.18,0.00015893,2]
[398503724,1765761033632,-152.05,0.00015893,2]
[398503725,1765761033642,-250.0,0.00015945,2]
[398503726,1765761033651,-199.94850002,0.00015989,2]
[398503727,1765761033660,-152.28,0.00016077,2]
[398503728,1765761033670,-215.82,0.00016077,2]
[398503729,1765761033679,-3612.89237856,0.00016078,2]
[398503730,1765761033689,-1020.54048194,0.00016078,2]
[398503731,1765761033701,-1012.46642951,0.00016078,2]
[398503732,1765761033712,-5332.97867924,0.00016078,2]
[398503733,1765761033726,-607.20461427,0.00016078,2]
[398503734,1765761033744,-47451.81093025,0.00016078,2]
[398503735,1765761033755,-1008.33,0.00016078,2]
[398503736,1765761038244,-4312.66566898,0.0001604,2]
[398503737,1765761038255,-451.14186505,0.0001604,2]
[398503738,1765761038267,-49839.9358282,0.0001604,2]
[398503739,1765761038277,-92949.04863857,0.00016078,2]
[398503740,1765761038292,-292.46894209,0.00016078,2]
[398503741,1765761038304,-5388.23074535,0.00016078,2]
[398503742,1765761038362,-842.19516951,0.00016078,2]
[398503743,1765761038374,-3531.99658436,0.00016078,2]
[398503745,1765761038422,-7667.91336077,0.00016078,2]
[398503746,1765761038433,-53755.24274558,0.00016078,2]
[398503747,1765761038443,-300.0,0.00016088,2]
[398503748,1765761038453,-300.0,0.00016088,2]
[398503749,1765761038462,-1200.0,0.00016088,2]
[398503750,1765761038471,-1200.0,0.00016089,2]
[398503751,1765761038481,-550.0,0.00016089,2]
[398503752,1765761038490,-5232.68300399,0.0001609,2]
[398503754,1765761040209,-271.37002482,0.0001609,2]
[398503755,1765761040265,-1865.59937057,0.0001609,2]
[398503756,1765761040277,-1398.19110062,0.0001609,2]
[398503757,1765761040286,-101.80889938,0.0001609,2]
[398503758,1765761040298,-398.18110062,0.0001609,2]
[398503759,1765761040308,-582.6914105,0.0001609,2]
[398503760,1765761040319,-9417.2985895,0.0001609,2]
[398503761,1765761040328,-2394.63,0.0001609,2]
[398503762,1765761040338,-2983.75284252,0.00016136,2]
[398503763,1765761040347,-165.94636177,0.00016139,2]
[398503764,1765761040356,-5415.78,0.00016141,2]
[398503765,1765761040365,-9999.99,0.00016141,2]
[398503766,1765761040374,-150.99,0.00016141,2]
[398503767,1765761040384,-999.99,0.00016141,2]
[398503768,1765761040393,-1920.73,0.00016141,2]
[398503769,1765761040403,-9999.99,0.00016141,2]
[398503770,1765761040412,-300.0,0.00016149,2]
[398503771,1765761040421,-156.51316244,0.00016149,2]
[398503772,1765761040430,-1111.0,0.00016149,2]
[398503773,1765761040440,-793.30049638,0.00016149,2]
[398503774,1765761040450,-578.20924308,0.00016149,2]
[398503775,1765761040460,-500.0,0.00016177,2]
[398503776,1765761040470,-401.69640802,0.00016177,2]
[398503777,1765761040479,-358.05807309,0.00016177,2]
[398503778,1765761040489,-500.0,0.00016177,2]
[398503779,1765761040500,-229.51298653,0.00016177,2]
[398503780,1765761040509,-500.0,0.00016177,2]
[398503781,1765761040518,-576.695982,0.00016177,2]
[398503782,1765761040527,-500.0,0.00016177,2]
[398503783,1765761040537,-553.56762137,0.00016177,2]
[398503784,1765761040546,-500.0,0.00016177,2]
[398503785,1765761040555,-500.0,0.00016177,2]
[398503786,1765761040565,-500.0,0.00016177,2]
[398503787,1765761040574,-500.0,0.00016177,2]
[398503788,1765761040584,-201.77053699,0.00016177,2]
[398503789,1765761040597,-500.0,0.00016177,2]
[398503790,1765761040606,-500.0,0.00016177,2]
[398503791,1765761040615,-500.0,0.00016177,2]
[398503792,1765761040625,-500.0,0.00016177,2]
[398503793,1765761040634,-500.0,0.00016177,2]
[398503794,1765761040643,-200.0,0.00016177,2]
[398503795,1765761040653,-500.0,0.00016177,2]
[398503796,1765761040662,-767.25189276,0.00016177,2]
[398503797,1765761040673,-767.25189276,0.00016177,2]
[398503798,1765761040683,-767.25189276,0.00016177,2]
[398503799,1765761040692,-767.25189276,0.00016177,2]
[398503800,1765761040701,-767.25189276,0.00016177,2]
[398503801,1765761040711,-767.25189276,0.00016177,2]
[398503802,1765761040720,-767.25189276,0.00016177,2]
[398503803,1765761040729,-767.25189276,0.00016177,2]
[398503804,1765761040739,-767.25189276,0.00016177,2]
[398503805,1765761040749,-767.25189276,0.00016177,2]
[398503806,1765761040758,-767.25189276,0.00016177,2]
[398503807,1765761040768,-767.25189276,0.00016177,2]
[398503808,1765761040777,-767.25189276,0.00016177,2]
[398503809,1765761040787,-767.25189276,0.00016177,2]
[398503810,1765761040796,-767.25189276,0.00016177,2]
[398503811,1765761040805,-767.25189276,0.00016177,2]
[398503812,1765761040814,-767.25189276,0.00016177,2]
[398503813,1765761040823,-767.25189276,0.00016177,2]
[398503814,1765761040833,-767.25189276,0.00016177,2]
[398503815,1765761040842,-767.25189276,0.00016177,2]
[398503816,1765761040851,-767.25189276,0.00016177,2]
[398503817,1765761040861,-767.25189276,0.00016177,2]
[398503818,1765761040870,-767.25189276,0.00016177,2]
[398503819,1765761040879,-767.25189276,0.00016177,2]
[398503820,1765761040888,-767.25189276,0.00016177,2]
[398503821,1765761040898,-767.25189276,0.00016177,2]
[398503822,1765761040907,-767.25189276,0.00016177,2]
[398503823,1765761040916,-767.25189276,0.00016177,2]
[398503824,1765761040926,-767.25189276,0.00016177,2]
[398503825,1765761040935,-767.25189276,0.00016177,2]
[398503826,1765761040944,-767.25189276,0.00016177,2]
[398503827,1765761040954,-767.25189276,0.00016177,2]
[398503828,1765761040963,-767.25189276,0.00016177,2]
[398503829,1765761040972,-767.25189276,0.00016177,2]
[398503830,1765761040981,-767.25189276,0.00016177,2]
[398503831,1765761040990,-767.25189276,0.00016177,2]
[398503832,1765761041000,-767.25189276,0.00016177,2]
[398503833,1765761041010,-767.25189276,0.00016177,2]
[398503834,1765761041019,-767.25189276,0.00016177,2]
[398503835,1765761041028,-767.25189276,0.00016177,2]
[398503836,1765761041037,-767.25189276,0.00016177,2]
[398503837,1765761041047,-767.25189276,0.00016177,2]
[398503838,1765761041056,-767.25189276,0.00016177,2]
[398503839,1765761041065,-767.25189276,0.00016177,2]
[398503840,1765761041074,-767.25189276,0.00016177,2]
[398503841,1765761041083,-767.25189276,0.00016177,2]
[398503842,1765761041093,-767.25189276,0.00016177,2]
[398503843,1765761041102,-767.25189276,0.00016177,2]
[398503844,1765761041111,-767.25189276,0.00016177,2]
[398503845,1765761041121,-767.25189276,0.00016177,2]
[398503846,1765761041130,-767.25189276,0.00016177,2]
[398503847,1765761041140,-758.17687038,0.00016177,2]
[398503848,1765761041150,-758.17687038,0.00016177,2]
[398503849,1765761041160,-758.17687038,0.00016177,2]
[398503850,1765761041169,-758.17687038,0.00016177,2]
[398503851,1765761041178,-758.17687038,0.00016177,2]
[398503852,1765761041187,-758.17687038,0.00016177,2]
[398503853,1765761041196,-758.17687038,0.00016177,2]
[398503854,1765761041207,-758.17687038,0.00016177,2]
[398503855,1765761041217,-758.17687038,0.00016177,2]
[398503856,1765761041226,-758.17687038,0.00016177,2]
[398503857,1765761041235,-758.17687038,0.00016177,2]
[398503858,1765761041244,-758.17687038,0.00016177,2]
[398503859,1765761041254,-758.17687038,0.00016177,2]
[398503860,1765761041263,-758.17687038,0.00016177,2]
[398503861,1765761041273,-758.17687038,0.00016177,2]
[398503862,1765761041282,-758.17687038,0.00016177,2]
[398503863,1765761041291,-758.17687038,0.00016177,2]
[398503864,1765761041300,-758.17687038,0.00016177,2]
[398503865,1765761041309,-758.17687038,0.00016177,2]
[398503866,1765761041319,-758.17687038,0.00016177,2]
[398503867,1765761041328,-758.17687038,0.00016177,2]
[398503868,1765761041336,-758.17687038,0.00016177,2]
[398503869,1765761041346,-758.17687038,0.00016177,2]
[398503870,1765761041355,-758.17687038,0.00016177,2]
[398503871,1765761041364,-758.17687038,0.00016177,2]
[398503872,1765761041373,-758.17687038,0.00016177,2]
[398503873,1765761041382,-758.17687037,0.00016177,2]
[398503874,1765761041392,-758.17687037,0.00016177,2]
[398503875,1765761041401,-758.17687037,0.00016177,2]
[398503876,1765761041410,-758.17687037,0.00016177,2]
[398503877,1765761041419,-758.17687036,0.00016177,2]
[398503878,1765761041430,-500.0,0.00016177,2]
[398503879,1765761041439,-200.0,0.00016178,2]
[398503880,1765761041448,-151.0,0.00016178,2]
[398503881,1765761041459,-151.0,0.00016178,2]
[398503882,1765761041468,-500.0,0.00016178,2]
[398503883,1765761041478,-151.0,0.00016178,2]
[398503884,1765761041490,-151.0,0.00016178,2]
[398503885,1765761041499,-500.0,0.00016178,2]
[398503886,1765761041510,-1000.0,0.00016178,2]
[398503887,1765761041520,-151.0,0.00016178,2]
[398503888,1765761041529,-151.0,0.00016178,2]
[398503889,1765761041538,-1000.0,0.00016178,2]
[398503890,1765761041547,-500.0,0.00016178,2]
[398503891,1765761041557,-151.0,0.00016178,2]
[398503892,1765761041566,-151.0,0.00016178,2]
[398503893,1765761041575,-1000.0,0.00016178,2]
[398503894,1765761041585,-500.0,0.00016178,2]
[398503895,1765761041595,-151.0,0.00016178,2]
[398503896,1765761041605,-151.0,0.00016178,2]
[398503897,1765761041615,-1000.0,0.00016178,2]
[398503898,1765761041624,-500.0,0.00016178,2]
[398503899,1765761041635,-151.0,0.00016178,2]
[398503900,1765761041645,-151.0,0.00016178,2]
[398503901,1765761041654,-1000.0,0.00016178,2]
[398503902,1765761041664,-500.0,0.00016178,2]
[398503903,1765761041674,-151.0,0.00016178,2]
[398503904,1765761041683,-151.0,0.00016178,2]
[398503905,1765761041692,-1000.0,0.00016178,2]
[398503906,1765761041701,-500.0,0.00016178,2]
[398503907,1765761041711,-151.0,0.00016178,2]
[398503908,1765761041719,-1000.0,0.00016178,2]
[398503909,1765761041728,-500.0,0.00016178,2]
[398503910,1765761041737,-151.0,0.00016178,2]
[398503911,1765761041746,-1000.0,0.00016178,2]
[398503912,1765761041757,-151.0,0.00016178,2]
[398503913,1765761041766,-1000.0,0.00016178,2]
[398503914,1765761041775,-500.0,0.00016178,2]
[398503915,1765761041784,-1000.0,0.00016178,2]
[398503916,1765761041793,-151.0,0.00016178,2]
[398503917,1765761041802,-151.0,0.00016178,2]
[398503918,1765761041812,-1000.0,0.00016178,2]
[398503919,1765761041821,-500.0,0.00016178,2]
[398503920,1765761041830,-151.0,0.00016178,2]
[398503921,1765761041839,-1000.0,0.00016178,2]
[398503922,1765761041847,-151.0,0.00016178,2]
[398503923,1765761041857,-1000.0,0.00016178,2]
[398503924,1765761041866,-500.0,0.00016178,2]
[398503925,1765761041876,-151.0,0.00016178,2]
[398503926,1765761041885,-1000.0,0.00016178,2]
[398503927,1765761041894,-151.0,0.00016178,2]
[398503928,1765761041903,-1000.0,0.00016178,2]
[398503929,1765761041913,-151.0,0.00016178,2]
[398503930,1765761041922,-1000.0,0.00016178,2]
[398503931,1765761041931,-151.0,0.00016178,2]
[398503932,1765761041940,-1000.0,0.00016178,2]
[398503933,1765761041949,-151.0,0.00016178,2]
[398503934,1765761041958,-1000.0,0.00016178,2]
[398503935,1765761041968,-151.0,0.00016178,2]
[398503936,1765761041977,-1000.0,0.00016178,2]
[398503937,1765761041986,-151.0,0.00016178,2]
[398503938,1765761041995,-250.0,0.00016178,2]
[398503939,1765761042003,-1000.0,0.00016178,2]
[398503940,1765761042013,-151.0,0.00016178,2]
[398503941,1765761042022,-1000.0,0.00016178,2]
[398503942,1765761042031,-151.0,0.00016178,2]
[398503943,1765761042039,-200.0,0.00016178,2]
[398503944,1765761042049,-1000.0,0.00016178,2]
[398503945,1765761042058,-151.0,0.00016178,2]
[398503946,1765761042067,-151.0,0.00016178,2]
[398503947,1765761042076,-165.06813051,0.00016178,2]
[398503948,1765761042085,-200.0,0.00016178,2]
[398503949,1765761042094,-574.12855637,0.00016178,2]
[398503950,1765761042103,-620.0,0.00016178,2]
[398503951,1765761042112,-500.0,0.00016178,2]
[398503952,1765761042121,-500.0,0.00016178,2]
[398503953,1765761042130,-500.0,0.00016178,2]
[398503954,1765761042139,-500.0,0.00016178,2]
[398503955,1765761042149,-500.0,0.00016178,2]
[398503956,1765761042158,-500.0,0.00016178,2]
[398503957,1765761042168,-500.0,0.00016178,2]
[398503958,1765761042177,-500.0,0.00016178,2]
[398503959,1765761042186,-500.0,0.00016178,2]
[398503960,1765761042195,-500.0,0.00016178,2]
[398503961,1765761042206,-500.0,0.00016178,2]
[398503962,1765761042215,-500.0,0.00016178,2]
[398503963,1765761042224,-151.0,0.00016178,2]
[398503964,1765761042233,-151.0,0.00016178,2]
[398503965,1765761042242,-168.58817255,0.00016183,2]
[398503966,1765761042251,-500.0,0.00016183,2]
[398503967,1765761042260,-282.46899589,0.00016183,2]
[398503968,1765761042269,-500.0,0.00016183,2]
[398503969,1765761042278,-173.84452669,0.00016183,2]
[398503970,1765761042287,-8715.61707547,0.00016186,2]
[398503971,1765761042297,-299.9620005,0.00016189,2]
[398503972,1765761042307,-2500.0,0.00016198,2]
[398503973,1765761042316,-1111.0,0.00016204,2]
[398503974,1765761042326,-1318.0,0.00016205,2]
[398503975,1765761042335,-161.0,0.00016205,2]
[398503976,1765761042345,-2983.75284244,0.00016221,2]
[398503977,1765761042354,-223.99944828,0.00016232,2]
[398503978,1765761042364,-10516.60724707,0.00016236,2]
[398503979,1765761042373,-767.0,0.00016238,2]
[398503980,1765761042382,-1111.0,0.00016259,2]
[398503981,1765761042391,-2036.35588343,0.00016268,2]
[398503982,1765761042400,-189.59,0.0001629,2]
[398503983,1765761042409,-3470.91253475,0.00016294,2]
[398503984,1765761042418,-1000.0,0.00016297,2]
[398503985,1765761042427,-1903.35512259,0.00016301,2]
[398503986,1765761042436,-579.83004604,0.00016301,2]
[398503987,1765761042445,-19292.52667868,0.00016301,2]
[398503988,1765761042455,-2983.75284244,0.00016306,2]
[398503989,1765761042466,-268.27,0.00016308,2]
[398503990,1765761042475,-1111.0,0.00016314,2]
[398503991,1765761042484,-167.85,0.00016327,2]
[398503992,1765761042493,-4974.0,0.00016347,2]
[398503993,1765761042502,-3629.32487341,0.00016358,2]
[398503994,1765761042512,-2036.35588342,0.00016358,2]
[398503995,1765761042521,-19292.52667859,0.00016368,2]
[398503996,1765761042530,-1111.0,0.00016369,2]
[398503997,1765761042539,-926.29,0.00016387,2]
[398503998,1765761042548,-2983.75284244,0.00016391,2]
[398503999,1765761042557,-500.0,0.00016396,2]
[398504000,1765761042567,-500.0,0.00016396,2]
[398504001,1765761042575,-500.0,0.00016396,2]
[398504002,1765761042584,-492.97672049,0.00016396,2]
[398504003,1765761042595,-500.0,0.00016396,2]
[398504004,1765761042604,-500.0,0.00016396,2]
[398504005,1765761042614,-500.0,0.00016396,2]
[398504006,1765761042623,-500.0,0.00016396,2]
[398504007,1765761042632,-500.0,0.00016396,2]
[398504008,1765761042642,-222.87994675,0.00016396,2]
[398504009,1765761042651,-500.0,0.00016396,2]
[398504010,1765761042660,-500.0,0.00016396,2]
[398504011,1765761042673,-500.0,0.00016396,2]
[398504012,1765761042682,-500.0,0.00016396,2]
[398504013,1765761042691,-1903.35512257,0.00016401,2]
[398504014,1765761042700,-1111.0,0.00016424,2]
[398504015,1765761042709,-389.0,0.00016427,2]
[398504016,1765761042718,-19292.52667859,0.00016434,2]
[398504017,1765761042727,-500.0,0.00016437,2]
[398504018,1765761042736,-500.0,0.00016437,2]
[398504019,1765761042745,-500.0,0.00016437,2]
[398504020,1765761042754,-500.0,0.00016438,2]
[398504021,1765761042763,-500.0,0.00016438,2]
[398504022,1765761042772,-266.55576785,0.00016438,2]
[398504023,1765761042781,-500.0,0.00016438,2]
[398504024,1765761042790,-500.0,0.00016438,2]
[398504025,1765761042799,-500.0,0.00016438,2]
[398504026,1765761042808,-500.0,0.00016438,2]
[398504027,1765761042817,-500.0,0.00016438,2]
[398504028,1765761042827,-500.0,0.00016438,2]
[398504029,1765761042836,-500.0,0.00016438,2]
[398504030,1765761042845,-500.0,0.00016438,2]
[398504031,1765761042854,-500.0,0.00016438,2]
[398504032,1765761042863,-600.0,0.00016438,2]
[398504033,1765761042873,-2036.35588342,0.00016449,2]
[398504034,1765761042883,-300.0,0.00016469,2]
[398504035,1765761042892,-2983.75284244,0.00016476,2]
[398504036,1765761042901,-1111.0,0.00016479,2]
[398504037,1765761042910,-1903.35512257,0.00016501,2]
[398504038,1765761042919,-19292.52667859,0.00016501,2]
[398504039,1765761042929,-1714.0,0.00016502,2]
[398504040,1765761042938,-151.0,0.00016504,2]
[398504041,1765761042947,-597.0,0.00016506,2]
[398504042,1765761042956,-33451.3695,0.00016507,2]
[398504043,1765761042965,-1000.0,0.00016507,2]
[398504044,1765761042974,-152.64,0.00016508,2]
[398504045,1765761042983,-4821.0,0.00016521,2]
[398504046,1765761042993,-1111.0,0.00016534,2]
[398504047,1765761043001,-2036.35588342,0.00016539,2]
[398504048,1765761043011,-520.28389231,0.00016557,2]
[398504049,1765761043022,-2983.75284244,0.0001656,2]
[398504050,1765761043033,-19292.52667859,0.00016567,2]